fUST/lending_fUST_20251214
["ID","MTS","AMOUNT","RATE_DAILY","PERIOD"]
[398461143,1765680640527,-2773.56790519,0.00020146,2]
[398461145,1765680640537,-1138.41370099,0.00020146,2]
[398461147,1765680640546,-20000.0,0.00020146,2]
[398461149,1765680640556,-500.0,0.00020146,2]
[398461151,1765680640565,-500.0,0.00020146,2]
[398461153,1765680640574,-500.0,0.00020146,2]
[398461155,1765680640583,-500.0,0.00020146,2]
[398461157,1765680640593,-533.13420524,0.00020146,2]
[398461159,1765680640602,-394.0,0.00020146,2]
[398461161,1765680640611,-241.781988,0.00020187,2]
[398461163,1765680640619,-249.63091308,0.0002019,2]
[398461165,1765680640628,-461.05037327,0.0002019,2]
[398461167,1765680640637,-829.89067189,0.0002019,2]
[398461169,1765680640646,-1475.36119447,0.0002019,2]
[398461171,1765680640655,-2305.25186635,0.0002019,2]
[398461173,1765680640664,-1572.0,0.00020217,2]
[398461175,1765680640673,-256.09840476,0.00020425,2]
[398461177,1765680640682,-158.9144418,0.00020442,2]
[398461179,1765680640691,-158.69787092,0.00020445,2]
[398461181,1765680640701,-1000.0,0.00020456,10]
[398461183,1765680640710,-244.0,0.00020456,10]
[398461185,1765680640719,-238.17663444,0.0002049,2]
[398461187,1765680640728,-151.0,0.000205,4]
[398461189,1765680640737,-2000.0,0.000205,7]
[398461191,1765680640747,-500.0,0.00020538,2]
[398461193,1765680640756,-1991.266158,0.00020548,2]
[398461195,1765680640765,-195.6760675,0.00020548,2]
[398461197,1765680640775,-597.4551763,0.00020548,2]
[398461199,1765680640783,-165.3871581,0.00020548,2]
[398461201,1765680640792,-597.4551763,0.00020548,2]
[398461203,1765680640802,-597.4551763,0.00020548,2]
[398461205,1765680640811,-1201.9586855,0.00020548,2]
[398461207,1765680640821,-168.5249227,0.00020548,2]
[398461209,1765680640830,-596.9378633,0.00020548,2]
[398461211,1765680640839,-165.455192,0.00020548,2]
[398461213,1765680640849,-165.455192,0.00020548,2]
[398461215,1765680640858,-500.0,0.0002055,2]
[398461217,1765680640867,-4143.14,0.0002055,2]
[398461219,1765680640877,-3299.65,0.00020551,2]
[398461221,1765680640886,-3299.65,0.00020551,2]
[398461223,1765680640895,-500.0,0.00020551,2]
[398461225,1765680640905,-500.0,0.00020551,2]
[398461227,1765680640914,-500.0,0.00020551,2]
[398461229,1765680640923,-4143.14,0.00020551,2]
[398461231,1765680640932,-4143.14,0.00020551,2]
[398461233,1765680640941,-151.0,0.00020552,2]
[398461235,1765680640950,-151.0,0.00020552,2]
[398461237,1765680640959,-151.0,0.00020552,2]
[398461239,1765680640968,-151.0,0.00020552,2]
[398461241,1765680640977,-151.0,0.00020552,2]
[398461243,1765680640986,-403.14623,0.00020552,2]
[398461245,1765680640995,-403.14623,0.00020552,2]
[398461247,1765680641005,-403.14623,0.00020552,2]
[398461249,1765680641015,-403.14623,0.00020552,2]
[398461251,1765680641024,-403.14623,0.00020552,2]
[398461253,1765680641033,-403.14623,0.00020552,2]
[398461255,1765680641042,-403.14623,0.00020552,2]
[398461257,1765680641051,-403.14623,0.00020552,2]
[398461259,1765680641060,-162.10999883,0.00020557,2]
[398461261,1765680641070,-500.0,0.00020592,2]
[398461263,1765680641079,-3299.65,0.00020593,2]
[398461265,1765680641088,-151.0,0.000206,4]
[398461267,1765680641098,-4143.14,0.00020603,2]
[398461269,1765680641107,-1572.0,0.00020604,2]
[398461271,1765680641116,-1750.78,0.00020626,2]
[398461273,1765680641124,-500.0,0.00020626,2]
[398461275,1765680641133,-500.0,0.00020627,2]
[398461277,1765680641143,-509.02656417,0.00020627,3]
[398461279,1765680641152,-500.0,0.00020627,2]
[398461281,1765680641161,-403.14623,0.00020627,2]
[398461283,1765680641170,-403.14623,0.00020627,2]
[398461285,1765680641179,-403.14623,0.00020627,2]
[398461287,1765680641188,-403.14623,0.00020627,2]
[398461289,1765680641197,-2057.39,0.00020627,2]
[398461291,1765680641207,-151.0,0.00020628,2]
[398461293,1765680641217,-1065.92990783,0.0002066,2]
[398461295,1765680641229,-198.08824625,0.00020662,2]
[398461297,1765680641238,-595.37131296,0.00020694,2]
[398461299,1765680641248,-2876.18991768,0.00020694,2]
[398461301,1765680641257,-500.0,0.00020699,2]
[398461303,1765680641266,-151.0,0.000207,4]
[398461305,1765680641275,-1572.0,0.00020715,2]
[398461307,1765680641284,-378.052,0.00020742,2]
[398461309,1765680641293,-1000.0,0.00020797,5]
[398461311,1765680641302,-151.0,0.000208,4]
[398461313,1765680641311,-500.0,0.00020806,2]
[398461315,1765680641320,-2057.39,0.00020806,2]
[398461317,1765680641329,-3299.65,0.00020886,2]
[398461319,1765680641339,-1572.0,0.00020887,2]
[398461321,1765680641348,-1572.0,0.00020902,2]
[398461323,1765680641358,-500.0,0.00020999,2]
[398461325,1765680641368,-4143.14,0.00020999,2]
[398461327,1765680641377,-7115.25065138,0.00021,2]
[398461329,1765680641387,-151.0,0.00021,3]
[398461331,1765680641397,-151.0,0.00021,3]
[398461333,1765680641406,-403.14623,0.00021,2]
[398461335,1765680641415,-403.14623,0.00021,2]
[398461337,1765680641424,-403.14623,0.00021,2]
[398461339,1765680641435,-403.146237,0.00021,2]
[398461341,1765680641444,-644.48,0.00021,2]
[398461343,1765680641454,-2000.0,0.00021,7]
[398461345,1765680641463,-1750.78,0.00021039,2]
[398461347,1765680641474,-500.0,0.00021039,2]
[398461349,1765680641485,-274.773056,0.00021056,2]
[398461351,1765680641494,-500.0,0.00021062,2]
[398461353,1765680641504,-3299.65,0.00021063,2]
[398461355,1765680641514,-4143.14,0.00021063,2]
[398461357,1765680641523,-7000.0,0.00021064,2]
[398461359,1765680641532,-1750.78,0.00021065,2]
[398461361,1765680641542,-500.0,0.00021065,2]
[398461363,1765680641551,-500.0,0.00021065,2]
[398461365,1765680641560,-500.0,0.00021065,2]
[398461367,1765680641569,-2057.39,0.00021065,2]
[398461369,1765680641578,-2057.39,0.00021065,2]
[398461371,1765680641586,-500.0,0.00021086,2]
[398461373,1765680641596,-1700.0,0.00021096,7]
[398461375,1765680641605,-500.0,0.00021099,2]
[398461377,1765680641614,-151.0,0.000211,3]
[398461379,1765680641623,-151.0,0.000211,4]
[398461381,1765680641633,-411.25948795,0.00021165,2]
[398461383,1765680641642,-151.0,0.000212,3]
[398461385,1765680641651,-151.0,0.000212,3]
[398461387,1765680641660,-151.0,0.000212,4]
[398461389,1765680641670,-151.0,0.000212,3]
[398461391,1765680641679,-151.0,0.000212,3]
[398461393,1765680641689,-11284.24,0.000212,2]
[398461395,1765680641698,-617.40005154,0.00021242,2]
[398461397,1765680641707,-937.95042755,0.00021242,2]
[398461399,1765680641717,-662.68009649,0.0002127,2]
[398461401,1765680641726,-3299.65,0.0002129,2]
[398461403,1765680641735,-475.0,0.0002129,7]
[398461405,1765680641744,-500.0,0.00021291,2]
[398461407,1765680641754,-500.0,0.00021291,2]
[398461409,1765680641763,-500.0,0.00021291,2]
[398461411,1765680641772,-500.0,0.00021291,2]
[398461413,1765680641782,-500.0,0.00021291,2]
[398461415,1765680641790,-500.0,0.00021291,2]
[398461417,1765680641800,-500.0,0.00021291,2]
[398461419,1765680641809,-500.0,0.00021291,2]
[398461421,1765680641819,-500.0,0.00021291,2]
[398461423,1765680641828,-446.81081464,0.00021291,2]
[398461425,1765680641836,-2057.39,0.00021291,2]
[398461427,1765680641845,-2057.39,0.00021291,2]
[398461429,1765680641854,-2057.39,0.00021291,2]
[398461431,1765680641864,-2057.39,0.00021291,2]
[398461433,1765680641874,-2057.39,0.00021291,2]
[398461435,1765680641883,-2057.39,0.00021291,2]
[398461437,1765680641892,-2057.39,0.00021291,2]
[398461439,1765680641902,-2057.39,0.00021291,2]
[398461441,1765680641911,-2057.39,0.00021291,2]
[398461443,1765680641920,-2057.39,0.00021291,2]
[398461445,1765680641929,-2057.39,0.00021291,2]
[398461447,1765680641938,-2057.39,0.00021291,2]
[398461449,1765680641947,-2057.39,0.00021291,2]
[398461451,1765680641958,-2057.39,0.00021291,2]
[398461453,1765680641967,-2057.39,0.00021291,2]
[398461455,1765680641975,-2057.39,0.00021291,2]
[398461457,1765680641984,-2057.39,0.00021291,2]
[398461459,1765680641993,-2057.58288551,0.00021291,2]
[398461461,1765680642002,-4143.14,0.00021299,2]
[398461463,1765680642011,-151.0,0.000213,4]
[398461465,1765680642020,-151.0,0.000213,4]
[398461467,1765680642029,-151.0,0.000213,4]
[398461469,1765680642038,-151.0,0.000213,4]
[398461471,1765680642047,-151.0,0.000213,4]
[398461473,1765680642056,-800.0,0.00021333,2]
[398461475,1765680642065,-1474.81252354,0.00021338,2]
[398461477,1765680642074,-1572.0,0.00021343,2]
[398461479,1765680642083,-800.0,0.00021361,2]
[398461481,1765680642092,-500.0,0.00021366,2]
[398461483,1765680642102,-500.0,0.00021366,2]
[398461485,1765680642111,-500.0,0.00021366,2]
[398461488,1765680642121,-500.0,0.00021366,2]
[398461490,1765680642130,-215.56681898,0.00021366,2]
[398461492,1765680642139,-800.0,0.00021367,2]
[398461494,1765680642148,-500.0,0.00021369,2]
[398461495,1765680642157,-500.0,0.00021369,2]
[398461497,1765680642166,-500.0,0.00021369,2]
[398461499,1765680642175,-500.0,0.00021369,2]
[398461501,1765680642185,-500.0,0.00021369,2]
[398461503,1765680642194,-167.31606595,0.00021369,2]
[398461505,1765680642202,-165.455192,0.0002137,2]
[398461507,1765680642211,-158.0609956,0.0002137,2]
[398461509,1765680642224,-302.2067323,0.0002137,2]
[398461511,1765680642233,-336.3,0.00021373,2]
[398461513,1765680642241,-800.0,0.00021379,2]
[398461516,1765680642250,-793.0,0.00021379,2]
[398461518,1765680642258,-925.60240363,0.00021388,2]
[398461520,1765680642268,-151.0,0.000214,3]
[398461522,1765680642277,-151.0,0.000214,4]
[398461524,1765680642286,-800.0,0.00021401,2]
[398461526,1765680642295,-800.0,0.00021403,2]
[398461528,1765680642305,-800.0,0.00021406,2]
[398461530,1765680642315,-800.0,0.00021422,2]
[398461532,1765680642324,-800.0,0.00021443,2]
[398461534,1765680642333,-800.0,0.00021446,2]
[398461537,1765680642342,-800.0,0.0002146,2]
[398461540,1765680642351,-800.0,0.00021462,2]
[398461543,1765680642360,-800.0,0.0002147,2]
[398461545,1765680642369,-1572.0,0.00021481,2]
[398461547,1765680642378,-800.0,0.00021482,2]
[398461549,1765680642387,-800.0,0.00021482,2]
[398461551,1765680642396,-800.0,0.00021499,2]
[398461553,1765680642406,-151.0,0.000215,3]
[398461555,1765680642414,-151.0,0.000215,3]
[398461557,1765680642423,-2000.0,0.000215,7]
[398461559,1765680642432,-198.08824625,0.000215,7]
[398461561,1765680642440,-800.0,0.00021514,2]
[398461563,1765680642449,-800.0,0.0002153,2]
[398461565,1765680642459,-800.0,0.0002155,2]
[398461567,1765680642468,-800.0,0.00021557,2]
[398461569,1765680642478,-800.0,0.00021566,2]
[398461571,1765680642487,-1572.0,0.00021579,2]
[398461573,1765680642496,-800.0,0.0002158,2]
[398461575,1765680642504,-3299.65,0.00021595,2]
[398461577,1765680642513,-1750.78,0.00021596,2]
[398461579,1765680642523,-500.0,0.00021596,2]
[398461581,1765680642532,-1000.0,0.00021597,2]
[398461583,1765680642541,-151.0,0.000216,4]
[398461585,1765680642550,-151.0,0.000216,4]
[398461587,1765680642559,-4143.14,0.00021614,2]
[398461589,1765680642568,-4947.0,0.00021615,2]
[398461591,1765680642576,-500.0,0.00021634,2]
[398461593,1765680642585,-2036.1891736,0.00021659,2]
[398461595,1765680642594,-800.0,0.0002166,2]
[398461597,1765680642604,-4143.14,0.00021663,2]
[398461599,1765680642613,-14680.9973297,0.00021664,2]
[398461601,1765680642622,-800.0,0.00021681,2]
[398461603,1765680642631,-413.61587238,0.00021684,2]
[398461605,1765680642640,-4947.0,0.0002169,2]
[398461607,1765680642649,-800.0,0.00021692,2]
[398461609,1765680642658,-151.0,0.000217,3]
[398461611,1765680642667,-500.0,0.000217,2]
[398461613,1765680642676,-800.0,0.00021701,2]
[398461615,1765680642685,-800.0,0.00021704,2]
[398461617,1765680642695,-1572.0,0.00021704,2]
[398461619,1765680642704,-10000.0,0.00021712,2]
[398461621,1765680642713,-4143.14,0.00021722,2]
[398461623,1765680642723,-151.0,0.00021723,2]
[398461625,1765680642731,-166.0,0.00021723,2]
[398461627,1765680642740,-156.0,0.00021723,2]
[398461629,1765680642749,-166.0,0.00021723,2]
[398461631,1765680642758,-156.0,0.00021723,2]
[398461633,1765680642767,-151.0,0.00021723,2]
[398461635,1765680642775,-166.0,0.00021723,2]
[398461637,1765680642785,-156.0,0.00021723,2]
[398461639,1765680642795,-156.0,0.00021723,2]
[398461641,1765680642805,-151.0,0.00021723,2]
[398461643,1765680642814,-156.0,0.00021723,2]
[398461645,1765680642823,-269.61887091,0.00021723,2]
[398461646,1765680642832,-151.0,0.00021723,2]
[398461648,1765680642841,-156.0,0.00021723,2]
[398461651,1765680642850,-156.0,0.00021723,2]
[398461654,1765680642859,-151.0,0.00021723,2]
[398461656,1765680642868,-334.0,0.00021723,2]
[398461658,1765680642877,-156.0,0.00021723,2]
[398461659,1765680642886,-152.0,0.00021723,2]
[398461660,1765680642896,-334.0,0.00021723,2]
[398461661,1765680642906,-156.0,0.00021723,2]
[398461662,1765680642915,-166.5314635,0.00021723,2]
[398461663,1765680642924,-151.0,0.00021723,2]
[398461664,1765680642934,-334.0,0.00021723,2]
[398461665,1765680642943,-156.0,0.00021723,2]
[398461666,1765680642952,-334.0,0.00021723,2]
[398461667,1765680642962,-156.0,0.00021723,2]
[398461668,1765680642971,-151.0,0.00021723,2]
[398461669,1765680642980,-334.0,0.00021723,2]
[398461670,1765680642989,-156.0,0.00021723,2]
[398461671,1765680642998,-166.12200006,0.00021723,2]
[398461672,1765680643008,-334.0,0.00021723,2]
[398461673,1765680643016,-151.0,0.00021723,2]
[398461674,1765680643026,-334.0,0.00021723,2]
[398461676,1765680643035,-334.0,0.00021723,2]
[398461678,1765680643044,-152.0,0.00021723,2]
[398461680,1765680643054,-151.0,0.00021723,2]
[398461682,1765680643063,-152.0,0.00021723,2]
[398461684,1765680643072,-334.0,0.00021723,2]
[398461685,1765680643081,-152.0,0.00021723,2]
[398461687,1765680643091,-334.0,0.00021723,2]
[398461689,1765680643100,-151.0,0.00021723,2]
[398461691,1765680643109,-152.0,0.00021723,2]
[398461692,1765680643119,-334.0,0.00021723,2]
[398461693,1765680643128,-152.0,0.00021723,2]
[398461694,1765680643138,-334.0,0.00021723,2]
[398461695,1765680643147,-151.0,0.00021723,2]
[398461696,1765680643157,-152.0,0.00021723,2]
[398461697,1765680643397,-334.0,0.00021723,2]
[398461698,1765680643409,-152.0,0.00021723,2]
[398461699,1765680643419,-334.0,0.00021723,2]
[398461700,1765680643428,-151.0,0.00021723,2]
[398461701,1765680643437,-152.0,0.00021723,2]
[398461702,1765680643447,-334.0,0.00021723,2]
[398461703,1765680643457,-152.0,0.00021723,2]
[398461704,1765680643467,-334.0,0.00021723,2]
[398461705,1765680643476,-151.0,0.00021723,2]
[398461706,1765680643486,-152.0,0.00021723,2]
[398461707,1765680643495,-334.0,0.00021723,2]
[398461708,1765680643504,-152.0,0.00021723,2]
[398461709,1765680643514,-441.04768803,0.00021723,2]
[398461710,1765680643524,-151.0,0.00021723,2]
[398461711,1765680643534,-152.0,0.00021723,2]
[398461712,1765680643543,-152.0,0.00021723,2]
[398461713,1765680643553,-151.0,0.00021723,2]
[398461714,1765680643563,-152.0,0.00021723,2]
[398461715,1765680643573,-152.0,0.00021723,2]
[398461716,1765680643583,-151.0,0.00021723,2]
[398461717,1765680643591,-152.0,0.00021723,2]
[398461718,1765680643600,-152.0,0.00021723,2]
[398461719,1765680643609,-151.0,0.00021723,2]
[398461720,1765680643619,-152.0,0.00021723,2]
[398461721,1765680643629,-152.0,0.00021723,2]
[398461722,1765680643639,-151.0,0.00021723,2]
[398461723,1765680643649,-152.0,0.00021723,2]
[398461724,1765680643658,-152.0,0.00021723,2]
[398461725,1765680643668,-151.0,0.00021723,2]
[398461726,1765680643679,-152.0,0.00021723,2]
[398461727,1765680643688,-151.0,0.00021723,2]
[398461728,1765680643696,-152.0,0.00021723,2]
[398461729,1765680643707,-152.0,0.00021723,2]
[398461730,1765680643721,-151.0,0.00021723,2]
[398461731,1765680643731,-152.0,0.00021723,2]
[398461732,1765680643740,-152.0,0.00021723,2]
[398461733,1765680643750,-151.0,0.00021723,2]
[398461734,1765680643759,-152.0,0.00021723,2]
[398461735,1765680643772,-152.0,0.00021723,2]
[398461736,1765680643784,-151.0,0.00021723,2]
[398461737,1765680643794,-152.0,0.00021723,2]
[398461738,1765680643803,-152.0,0.00021723,2]
[398461739,1765680643813,-151.0,0.00021723,2]
[398461740,1765680643822,-152.0,0.00021723,2]
[398461741,1765680643832,-152.0,0.00021723,2]
[398461742,1765680643843,-151.0,0.00021723,2]
[398461743,1765680643852,-152.0,0.00021723,2]
[398461744,1765680643862,-258.21740966,0.00021723,2]
[398461745,1765680643872,-151.0,0.00021723,2]
[398461746,1765680643882,-151.0,0.00021723,2]
[398461747,1765680643895,-151.0,0.00021723,2]
[398461748,1765680643905,-166.0,0.00021723,2]
[398461749,1765680643915,-166.0,0.00021723,2]
[398461750,1765680643925,-166.9139167,0.00021723,2]
[398461751,1765680643935,-151.0,0.00021723,2]
[398461752,1765680643946,-151.0,0.00021723,2]
[398461753,1765680643956,-151.0,0.00021723,2]
[398461754,1765680643966,-334.0,0.00021723,2]
[398461755,1765680643977,-151.0,0.00021723,2]
[398461756,1765680643995,-151.0,0.00021723,2]
[398461757,1765680644006,-151.0,0.00021723,2]
[398461758,1765680644016,-151.0,0.00021723,2]
[398461759,1765680644027,-151.0,0.00021723,2]
[398461760,1765680644036,-151.0,0.00021723,2]
[398461761,1765680644046,-151.0,0.00021723,2]
[398461762,1765680644056,-151.0,0.00021723,2]
[398461763,1765680644066,-151.0,0.00021723,2]
[398461764,1765680644080,-151.0,0.00021723,2]
[398461765,1765680644092,-151.0,0.00021723,2]
[398461766,1765680644102,-151.0,0.00021723,2]
[398461767,1765680644111,-151.0,0.00021723,2]
[398461768,1765680644121,-151.0,0.00021723,2]
[398461769,1765680644131,-210.27076431,0.00021723,2]
[398461770,1765680644140,-800.0,0.00021731,2]
[398461771,1765680644150,-537.65043338,0.00021734,2]
[398461772,1765680644159,-800.0,0.00021746,2]
[398461773,1765680644168,-800.0,0.00021753,2]
[398461774,1765680644178,-3299.65,0.00021757,2]
[398461775,1765680644187,-4947.0,0.00021758,2]
[398461776,1765680644197,-800.0,0.00021764,2]
[398461777,1765680644207,-4143.14,0.00021765,2]
[398461778,1765680644216,-4947.0,0.00021765,2]
[398461779,1765680644230,-800.0,0.00021771,2]
[398461780,1765680644239,-800.0,0.00021775,2]
[398461781,1765680644249,-4947.0,0.00021784,2]
[398461782,1765680644259,-4947.0,0.00021784,2]
[398461783,1765680644269,-3299.65,0.00021787,2]
[398461784,1765680644279,-1750.78,0.00021788,2]
[398461785,1765680644288,-500.0,0.00021788,2]
[398461786,1765680644299,-640.24385345,0.0002179,2]
[398461787,1765680644308,-4143.14,0.00021791,2]
[398461788,1765680644318,-4947.0,0.00021792,2]
[398461789,1765680644327,-151.0,0.000218,3]
[398461790,1765680644336,-151.0,0.000218,4]
[398461791,1765680644346,-772.0,0.000218,2]
[398461792,1765680644355,-800.0,0.00021802,2]
[398461793,1765680644364,-1750.78,0.00021815,2]
[398461794,1765680644373,-1750.78,0.00021815,2]
[398461795,1765680644382,-500.0,0.00021815,2]
[398461796,1765680644391,-500.0,0.00021815,2]
[398461797,1765680644401,-6517.69417113,0.00021818,2]
[398461798,1765680644410,-800.0,0.0002182,2]
[398461799,1765680644421,-800.0,0.00021826,2]
[398461800,1765680644432,-4947.0,0.00021854,2]
[398461801,1765680644441,-800.0,0.00021857,2]
[398461802,1765680644451,-800.0,0.0002187,2]
[398461803,1765680644460,-245.81875392,0.00021874,8]
[398461804,1765680644469,-4143.14,0.00021876,2]
[398461805,1765680644479,-3299.65,0.00021877,2]
[398461806,1765680644488,-4947.0,0.00021878,2]
[398461807,1765680644497,-800.0,0.00021879,2]
[398461808,1765680644506,-3000.0,0.000219,2]
[398461809,1765680644516,-250.0,0.000219,10]
[398461810,1765680644525,-1151.0692812,0.000219,2]
[398461811,1765680644534,-800.0,0.00021906,2]
[398461812,1765680644544,-1750.78,0.00021909,2]
[398461813,1765680644553,-500.0,0.00021909,2]
[398461814,1765680644562,-3000.0,0.0002191,2]
[398461815,1765680644572,-4143.14,0.00021914,2]
[398461816,1765680644581,-3299.65,0.00021915,2]
[398461817,1765680644591,-3299.65,0.00021915,2]
[398461818,1765680644601,-4143.14,0.00021915,2]
[398461819,1765680644610,-4143.14,0.00021915,2]
[398461820,1765680644620,-4143.14,0.00021915,2]
[398461821,1765680644630,-4143.14,0.00021915,2]
[398461822,1765680644639,-4143.14952955,0.00021915,2]
[398461823,1765680644649,-1750.78,0.00021916,2]
[398461824,1765680644659,-1750.78,0.00021916,2]
[398461825,1765680644669,-1750.78,0.00021916,2]
[398461826,1765680644679,-1750.78,0.00021916,2]
[398461827,1765680644689,-1750.78,0.00021916,2]
[398461828,1765680644698,-1750.78,0.00021916,2]
[398461829,1765680644707,-1750.78,0.00021916,2]
[398461830,1765680644716,-1750.78,0.00021916,2]
[398461831,1765680644725,-1750.78,0.00021916,2]
[398461832,1765680644735,-1750.78,0.00021916,2]
[398461833,1765680644745,-1750.78,0.00021916,2]
[398461834,1765680644755,-1750.78,0.00021916,2]
[398461835,1765680644764,-1750.78,0.00021916,2]
[398461836,1765680644774,-1750.78,0.00021916,2]
[398461837,1765680644783,-1750.78,0.00021916,2]
[398461838,1765680644793,-1750.90313317,0.00021916,2]
[398461839,1765680644802,-500.0,0.00021916,2]
[398461840,1765680644811,-500.0,0.00021916,2]
[398461841,1765680644821,-500.0,0.00021916,2]
[398461842,1765680644830,-500.0,0.00021916,2]
[398461843,1765680644840,-500.0,0.00021916,2]
[398461844,1765680644849,-503.37145983,0.00021916,2]
[398461845,1765680644858,-3299.65,0.00021916,2]
[398461846,1765680644868,-3299.65,0.00021916,2]
[398461847,1765680644878,-3299.65,0.00021916,2]
[398461848,1765680644888,-3299.65,0.00021916,2]
[398461849,1765680644897,-3299.65,0.00021916,2]
[398461850,1765680644907,-3299.65,0.00021916,2]
[398461851,1765680644916,-3299.65,0.00021916,2]
[398461852,1765680644928,-3299.65,0.00021916,2]
[398461853,1765680644938,-3299.65,0.00021916,2]
[398461854,1765680644947,-3299.84348765,0.00021916,2]
[398461855,1765680644957,-200.0,0.00021916,2]
[398461856,1765680644966,-200.0,0.00021916,2]
[398461857,1765680644976,-200.0,0.00021916,2]
[398461858,1765680644985,-1000.0,0.00021917,2]
[398461859,1765680644995,-1921.03,0.00021917,2]
[398461860,1765680645005,-592.164601,0.00021917,2]
[398461861,1765680645014,-1480.4115,0.00021917,2]
[398461862,1765680645024,-500.0,0.00021917,2]
[398461863,1765680645034,-500.0,0.00021917,2]
[398461864,1765680645043,-617.03898037,0.00021917,2]
[398461865,1765680645053,-842.9,0.00021917,2]
[398461866,1765680645062,-500.0,0.00021917,2]
[398461867,1765680645071,-420.8632352,0.00021917,2]
[398461868,1765680645080,-500.0,0.00021917,2]
[398461869,1765680645090,-500.0,0.00021917,2]
[398461870,1765680645099,-500.0,0.00021917,2]
[398461871,1765680645108,-594.35,0.00021917,2]
[398461872,1765680645118,-500.0,0.00021917,2]
[398461873,1765680645127,-644.67,0.00021917,2]
[398461874,1765680645138,-500.0,0.00021917,2]
[398461875,1765680645147,-500.0,0.00021917,2]
[398461876,1765680645157,-500.0,0.00021917,2]
[398461877,1765680645166,-500.0,0.00021917,2]
[398461879,1765680645175,-966.63,0.00021917,2]
[398461880,1765680645184,-500.0,0.00021917,2]
[398461881,1765680645193,-685.39,0.00021917,2]
[398461882,1765680645202,-500.0,0.00021917,2]
[398461883,1765680645211,-956.06,0.00021917,2]
[398461884,1765680645220,-500.0,0.00021917,2]
[398461885,1765680645233,-500.0,0.00021917,2]
[398461887,1765680645242,-1405.14,0.00021917,2]
[398461889,1765680645251,-781.08,0.00021917,2]
[398461891,1765680645261,-500.0,0.00021917,2]
[398461892,1765680645270,-502.21608399,0.00021917,2]
[398461893,1765680645279,-500.0,0.00021917,2]
[398461894,1765680645288,-500.0,0.00021917,2]
[398461896,1765680645297,-500.0,0.00021917,2]
[398461897,1765680645308,-570.44484179,0.00021917,2]
[398461898,1765680645317,-500.0,0.00021917,2]
[398461899,1765680645326,-1196.43,0.00021917,2]
[398461900,1765680645336,-502.71598401,0.00021917,2]
[398461901,1765680645345,-1402.34,0.00021917,2]
[398461902,1765680645355,-500.0,0.00021917,2]
[398461903,1765680645364,-500.0,0.00021917,2]
[398461904,1765680645373,-500.0,0.00021917,2]
[398461905,1765680645382,-1440.67,0.00021917,2]
[398461906,1765680645391,-1269.79,0.00021917,2]
[398461907,1765680645401,-1145.63,0.00021917,2]
[398461908,1765680645410,-500.0,0.00021917,2]
[398461909,1765680645419,-858.98,0.00021917,2]
[398461910,1765680645428,-500.0,0.00021917,2]
[398461911,1765680645438,-500.0,0.00021917,2]
[398461912,1765680645448,-635.85,0.00021917,2]
[398461913,1765680645457,-500.0,0.00021917,2]
[398461914,1765680645466,-500.0,0.00021917,2]
[398461915,1765680645475,-500.0,0.00021917,2]